bitfinex/quotes_BTCUSD_20250115
["timestamp","ask_amount","ask_price","bid_price","bid_amount"]
[1736956130587,0.00024993,99550.0,99549.0,2.80023048]
[1736956131505,0.00024993,99550.0,99549.0,2.73334248]
[1736956131968,0.00024993,99550.0,99549.0,2.63334248]
[1736956132142,0.00024993,99550.0,99549.0,2.68612548]
[1736956132369,0.00024993,99550.0,99549.0,2.58512548]
[1736956132754,0.00024993,99550.0,99549.0,2.68512548]
[1736956132959,0.00024993,99550.0,99549.0,2.58512548]
[1736956133166,0.00024993,99550.0,99549.0,2.68512548]
[1736956133634,0.00024993,99550.0,99549.0,1.93965392]
[1736956133837,0.00024993,99550.0,99549.0,0.30513292]
[1736956133991,0.00024993,99550.0,99549.0,0.32813292]
[1736956134179,0.01024993,99550.0,99549.0,0.32813292]
[1736956134465,0.01024993,99550.0,99549.0,1.01606992]
[1736956134712,0.01024993,99550.0,99549.0,0.64668892]
[1736956135554,0.01024993,99550.0,99549.0,0.79668892]
[1736956135983,0.01024993,99550.0,99549.0,0.99668892]
[1736956136421,0.01024993,99550.0,99549.0,2.49668892]
[1736956136800,0.01024993,99550.0,99549.0,2.39668892]
[1736956136999,0.01024993,99550.0,99549.0,2.29568892]
[1736956137386,0.01024993,99550.0,99549.0,2.49568892]
[1736956137789,0.01024993,99550.0,99549.0,2.39568892]
[1736956138596,0.01024993,99550.0,99549.0,2.43590892]
[1736956138799,0.01024993,99550.0,99549.0,2.76160892]
[1736956140735,0.01024993,99550.0,99549.0,2.76360892]
[1736956140890,0.01024993,99550.0,99549.0,2.66360892]
[1736956141090,0.01024993,99550.0,99549.0,2.13283292]
[1736956141808,0.01024993,99550.0,99549.0,2.15583292]
[1736956142011,0.01024993,99550.0,99549.0,2.15483292]
[1736956142214,0.01024993,99550.0,99549.0,2.15383292]
[1736956142411,0.01024993,99550.0,99549.0,2.13183292]
[1736956142731,0.01024993,99550.0,99549.0,1.8267]
[1736956142732,0.01110403,99550.0,99549.0,1.8267]
[1736956142950,0.01110403,99550.0,99549.0,1.8257]
[1736956143147,0.01110403,99550.0,99549.0,1.93092692]
[1736956143302,0.01810403,99550.0,99549.0,1.93192692]
[1736956143720,0.01110403,99550.0,99549.0,1.92992692]
[1736956143952,0.01110403,99550.0,99549.0,1.93792692]
[1736956144167,0.01110403,99550.0,99549.0,1.93192692]
[1736956144760,0.01110403,99550.0,99549.0,1.508]
[1736956145161,0.01110403,99550.0,99549.0,1.502]
[1736956145363,0.01110403,99550.0,99549.0,1.5]
[1736956145501,0.01110403,99550.0,99549.0,1.504]
[1736956145907,0.01110403,99550.0,99549.0,1.5]
[1736956146316,0.20092,99542.0,99515.0,0.00179361]
[1736956146522,0.1277,99543.0,99516.0,0.200972]
[1736956146523,0.17469554,99540.0,99516.0,0.200972]
[1736956146717,0.00093536,99539.0,99518.0,1.5]
[1736956146920,0.15,99537.0,99518.0,1.5]
[1736956147128,0.200934,99535.0,99519.0,0.20197077]
[1736956147333,0.200934,99535.0,99519.0,0.00100477]
[1736956147939,0.200943,99531.0,99519.0,0.00100477]
[1736956148180,0.200934,99535.0,99519.0,0.00100477]
[1736956148377,0.200934,99535.0,99520.0,0.200964]
[1736956148585,0.200942,99531.0,99519.0,0.00100477]
[1736956148938,0.200943,99531.0,99520.0,0.200964]
[1736956149923,0.00093536,99530.0,99518.0,1.5]
[1736956150126,0.200946,99529.0,99519.0,0.001]
[1736956150330,0.200945,99530.0,99520.0,0.001]
[1736956150830,0.200945,99530.0,99520.0,0.002]
[1736956151029,0.200934,99535.0,99529.0,1.5]
[1736956151232,0.200943,99531.0,99521.0,0.200961]
[1736956151791,0.200943,99531.0,99530.0,1.5]
[1736956152000,0.200934,99535.0,99530.0,1.5]
[1736956152195,0.0819,99543.0,99533.0,0.200937]
[1736956152459,0.0008544,99553.0,99546.0,0.200911]
[1736956152595,0.0008544,99553.0,99535.0,0.023]
[1736956152596,0.0008544,99553.0,99549.0,1.5]
[1736956154051,0.0008544,99553.0,99549.0,1.503]
[1736956154228,0.0008544,99553.0,99549.0,1.5]
[1736956154429,0.0008544,99553.0,99549.0,1.62722692]
[1736956154646,0.0008544,99553.0,99549.0,1.63022692]
[1736956155052,0.0008544,99553.0,99549.0,1.62922692]
[1736956155310,0.0008544,99553.0,99549.0,1.502]
[1736956155512,0.0008544,99553.0,99549.0,1.5]
[1736956155994,0.0008544,99553.0,99549.0,1.503]
[1736956156594,0.0008544,99553.0,99549.0,1.505]
[1736956157189,0.0008544,99553.0,99549.0,1.502]
[1736956157392,0.0008544,99553.0,99549.0,1.505]
[1736956157775,0.0008544,99553.0,99549.0,1.502]
[1736956157983,0.0008544,99553.0,99549.0,1.5]
[1736956158182,0.0008544,99553.0,99549.0,1.508]
[1736956158728,0.0008544,99553.0,99549.0,1.506]
[1736956159011,0.2017534,99553.0,99549.0,0.01]
[1736956159220,0.00093536,99552.0,99549.0,0.01]
[1736956159360,0.2017534,99553.0,99538.0,1.5]
[1736956159584,0.01006323,99551.0,99549.0,0.008]
[1736956159790,0.01006323,99551.0,99549.0,0.011]
[1736956160027,0.01006323,99551.0,99549.0,0.003]
[1736956160235,0.01006323,99551.0,99549.0,0.004]
[1736956160437,0.01203939,99550.0,99549.0,0.003]
[1736956160674,0.3786082,99550.0,99549.0,0.003]
[1736956160830,0.64093095,99550.0,99549.0,0.003]
[1736956161034,0.200966,99519.0,99518.0,0.00179361]
[1736956161483,0.50099292,99519.0,99518.0,0.00179361]
[1736956161705,0.51102593,99519.0,99518.0,0.00179361]
[1736956161917,0.1,99516.0,99493.0,1.5]
[1736956162122,0.35516228,99516.0,99493.0,1.5]
[1736956162329,0.35422692,99516.0,99493.0,1.5]
[1736956162526,0.25437677,99516.0,99493.0,1.5]
[1736956162966,0.15014985,99516.0,99493.0,1.5]
[1736956163184,0.00014985,99516.0,99494.0,0.00100492]
[1736956163388,0.00014985,99516.0,99500.0,0.201004]
[1736956163592,0.00014985,99516.0,99494.0,0.00100492]
[1736956163593,0.00014985,99516.0,99509.0,0.200986]
[1736956163799,0.00014985,99516.0,99514.0,0.200975]
[1736956164024,0.00014985,99516.0,99515.0,1.63002525]
[1736956164227,0.00014985,99516.0,99515.0,1.62902053]
[1736956164438,0.00414985,99516.0,99515.0,1.62902053]
[1736956164651,0.00014985,99516.0,99515.0,1.62902053]
[1736956165022,0.00214985,99516.0,99515.0,1.62902053]
[1736956165280,0.00214985,99516.0,99515.0,1.50179361]
[1736956165483,0.00014985,99516.0,99515.0,1.50179361]
[1736956165818,0.00014985,99516.0,99515.0,1.50779361]
[1736956166241,0.00014985,99516.0,99515.0,1.50179361]
[1736956166450,0.00014985,99516.0,99515.0,1.50979361]
[1736956166849,0.00014985,99516.0,99515.0,1.50179361]
[1736956167169,0.00014985,99516.0,99515.0,1.50679361]
[1736956167328,0.00014985,99516.0,99515.0,1.50179361]
[1736956167529,0.00014985,99516.0,99515.0,1.50579361]
[1736956167733,0.00014985,99516.0,99515.0,1.51079361]
[1736956168112,0.00014985,99516.0,99515.0,1.50679361]
[1736956168314,0.00014985,99516.0,99515.0,1.50979361]
[1736956168760,0.00014985,99516.0,99515.0,1.50679361]
[1736956168937,0.00014985,99516.0,99515.0,1.50179361]
[1736956169141,0.00014985,99516.0,99515.0,1.50479361]
[1736956169344,0.00014985,99516.0,99515.0,1.50779361]
[1736956169545,0.20112185,99516.0,99515.0,1.50479361]
[1736956169949,0.20112185,99516.0,99515.0,1.51179361]
[1736956170149,0.20112185,99516.0,99515.0,0.01179361]
[1736956170791,0.20112185,99516.0,99515.0,0.00479361]
[1736956171175,0.45534877,99516.0,99515.0,0.00479361]
[1736956171375,0.45534877,99516.0,99515.0,0.00179361]
[1736956171934,0.35112185,99516.0,99515.0,0.00479361]
[1736956172137,0.35112185,99516.0,99515.0,0.00679361]
[1736956172342,0.20112185,99516.0,99515.0,0.00179361]
[1736956172513,0.00014985,99516.0,99515.0,0.00279361]
[1736956172813,0.20112185,99516.0,99515.0,0.00479361]
[1736956173057,0.00014985,99516.0,99515.0,0.00479361]
[1736956173231,0.00014985,99516.0,99515.0,0.11002521]
[1736956173430,0.00014985,99516.0,99515.0,0.00479361]
[1736956173638,0.00014985,99516.0,99515.0,1.50479361]
[1736956174744,0.00014985,99516.0,99515.0,1.63202053]
[1736956175129,0.00014985,99516.0,99515.0,1.62902053]
[1736956175321,0.00514985,99516.0,99515.0,1.63802053]
[1736956175465,0.00514985,99516.0,99515.0,2.16481153]
[1736956175667,0.00514985,99516.0,99515.0,2.15581153]
[1736956175897,0.00014985,99516.0,99515.0,1.63802053]
[1736956176097,0.00014985,99516.0,99515.0,1.51079361]
[1736956176321,0.00014985,99516.0,99515.0,1.50679361]
[1736956176521,0.00014985,99516.0,99515.0,0.00679361]
[1736956176726,0.00014985,99516.0,99515.0,0.01079361]
[1736956176899,0.00014985,99516.0,99515.0,0.00179361]
[1736956177099,0.00414985,99516.0,99515.0,0.00179361]
[1736956178319,0.00014985,99516.0,99515.0,0.01079361]
[1736956178489,0.00014985,99516.0,99515.0,0.00179361]
[1736956178705,0.00014985,99516.0,99515.0,0.00279361]
[1736956178850,0.00014985,99516.0,99515.0,0.00479361]
[1736956180436,0.00014985,99516.0,99515.0,1.50479361]
[1736956182678,0.00014985,99516.0,99515.0,1.63202053]
[1736956183491,0.00014985,99516.0,99515.0,1.63102053]
[1736956183772,0.00014985,99516.0,99515.0,2.19342853]
[1736956184200,0.00014985,99516.0,99515.0,1.71852053]
[1736956184495,8.5e-07,99516.0,99515.0,2.86828253]
[1736956184802,8.5e-07,99516.0,99515.0,2.07552053]
[1736956184954,8.5e-07,99516.0,99515.0,1.97052053]
[1736956185163,8.5e-07,99516.0,99515.0,2.06152053]
[1736956185394,8.5e-07,99516.0,99515.0,1.87652053]
[1736956185794,8.5e-07,99516.0,99515.0,1.87052053]
[1736956186000,8.5e-07,99516.0,99515.0,1.72052053]
[1736956186343,0.00300085,99516.0,99515.0,1.72152053]
[1736956186480,0.00300085,99516.0,99515.0,1.96253753]
[1736956186676,8.5e-07,99516.0,99515.0,1.91803753]
[1736956186937,8.5e-07,99516.0,99515.0,1.72152053]
[1736956187358,0.0008543,99518.0,99516.0,1.139979]
[1736956187490,0.0008544,99553.0,99549.0,0.200906]
[1736956187694,0.0008544,99553.0,99549.0,0.32813292]
[1736956187901,0.0008544,99553.0,99549.0,2.49356992]
[1736956188101,0.0008544,99553.0,99549.0,2.76000645]
[1736956188308,0.0008544,99553.0,99549.0,2.86000645]
[1736956188509,0.0008544,99553.0,99549.0,2.76000645]
[1736956188732,0.01110384,99550.0,99549.0,2.62764092]
[1736956188937,0.01110384,99550.0,99549.0,1.82813292]
[1736956189140,0.01210384,99550.0,99549.0,1.82913292]
[1736956189794,0.01210384,99550.0,99549.0,2.54652892]
[1736956189999,0.01610384,99550.0,99549.0,2.54752892]
[1736956190222,0.01610384,99550.0,99549.0,2.48355492]
[1736956190427,0.01210384,99550.0,99549.0,2.63255492]
[1736956190755,0.0008544,99553.0,99552.0,0.1]
[1736956190974,0.0008544,99553.0,99552.0,3.05865588]
[1736956191184,0.0008544,99553.0,99552.0,3.04103976]
[1736956191385,0.0008544,99553.0,99552.0,2.66422476]
[1736956191596,0.0008544,99553.0,99552.0,4.10313876]
[1736956191839,0.0008544,99553.0,99552.0,3.87155276]
[1736956192223,0.0018544,99553.0,99552.0,3.77255276]
[1736956192425,0.0018544,99553.0,99552.0,3.04647176]
[1736956192746,0.0028544,99553.0,99552.0,3.04747176]
[1736956192928,0.0028544,99553.0,99552.0,2.94695416]
[1736956193145,0.0028544,99553.0,99552.0,1.60522692]
[1736956193535,0.0068544,99553.0,99552.0,1.62922692]
[1736956194228,0.0068544,99553.0,99552.0,1.84642392]
[1736956194377,0.0068544,99553.0,99552.0,1.62922692]
[1736956194580,0.0048544,99553.0,99552.0,1.62822692]
[1736956194905,0.0058544,99553.0,99552.0,1.62922692]
[1736956195124,0.0058544,99553.0,99552.0,1.62822692]
[1736956195583,0.0058544,99553.0,99552.0,1.63722692]
[1736956195802,0.0018544,99553.0,99552.0,1.63622692]
[1736956196012,0.0018544,99553.0,99552.0,2.03073892]
[1736956196215,0.0018544,99553.0,99552.0,1.63622692]
[1736956196604,0.0018544,99553.0,99552.0,1.63722692]
[1736956196983,0.0018544,99553.0,99552.0,1.63622692]
[1736956197347,0.0018544,99553.0,99552.0,1.64222692]
[1736956197548,0.0018544,99553.0,99552.0,1.515]
[1736956198814,0.0018544,99553.0,99552.0,1.509]
[1736956199187,0.0008544,99553.0,99552.0,1.504]
[1736956199600,0.0008544,99553.0,99552.0,1.506]
[1736956200094,0.0008544,99553.0,99552.0,1.509]
[1736956200700,0.0008544,99553.0,99552.0,1.63022692]
[1736956200930,0.0008544,99553.0,99552.0,2.91014416]
[1736956201135,0.0008544,99553.0,99552.0,2.64155516]
[1736956201340,0.0008544,99553.0,99552.0,1.63622692]
[1736956201744,0.0008544,99553.0,99552.0,1.63322692]
[1736956201957,0.0008544,99553.0,99552.0,1.62722692]
[1736956202191,0.0018544,99553.0,99552.0,1.63822692]
[1736956202334,0.0018544,99553.0,99552.0,3.30698516]
[1736956202537,0.00073322,99553.0,99552.0,3.10413716]
[1736956202755,0.00073322,99553.0,99552.0,3.02838416]
[1736956202961,0.00173322,99553.0,99552.0,3.03238416]
[1736956203936,0.00173322,99553.0,99552.0,3.01938416]
[1736956204184,0.00073322,99553.0,99552.0,3.00519216]
[1736956204365,0.00173322,99553.0,99552.0,2.64155516]
[1736956204580,0.00173322,99553.0,99552.0,1.60422692]
[1736956204923,0.01073322,99553.0,99552.0,1.501]
[1736956205406,0.00973322,99553.0,99552.0,1.5]
[1736956205622,0.01073322,99553.0,99552.0,1.514]
[1736956206034,0.01073322,99553.0,99552.0,1.509]
[1736956206445,0.01073322,99553.0,99552.0,1.512]
[1736956207763,0.27491181,99553.0,99552.0,0.012]
[1736956207973,0.45722187,99553.0,99552.0,0.003]
[1736956208188,0.200948,99529.0,99518.0,0.00179403]
[1736956208370,0.35722187,99553.0,99519.0,1.5]
[1736956208371,0.20095,99528.0,99519.0,1.5]
[1736956208749,0.200952,99526.0,99519.0,1.5]
[1736956209199,0.200954,99525.0,99519.0,1.5]
[1736956209578,0.200964,99520.0,99519.0,0.001]
[1736956209784,0.57538086,99520.0,99519.0,0.001]
[1736956209983,0.578703,99501.0,99480.0,1.5]
[1736956210162,0.78988992,99501.0,99500.0,1.00014974]
[1736956211597,0.69316448,99501.0,99500.0,1.00014974]
[1736956211797,0.60412448,99501.0,99500.0,1.00014974]
[1736956212009,0.60412448,99501.0,99471.0,1.5]
[1736956212010,0.201061,99472.0,99471.0,1.5]
[1736956212231,0.201061,99472.0,99471.0,1.50014985]
[1736956213004,0.20105,99478.0,99471.0,1.50014985]
[1736956213217,0.201059,99473.0,99471.0,1.50014985]
[1736956213423,0.20105,99478.0,99471.0,1.50014985]
[1736956214422,0.00657207,99480.0,99471.0,1.50054985]
[1736956214705,0.201057,99474.0,99471.0,1.50054985]
[1736956214882,0.431561,99472.0,99471.0,0.00054985]
[1736956215184,0.68298792,99472.0,99471.0,0.00054985]
[1736956215916,0.79295339,99472.0,99471.0,0.00054985]
[1736956216343,0.48872647,99472.0,99471.0,0.00054985]
[1736956216519,0.49172647,99472.0,99471.0,0.00054985]
[1736956216928,0.59695339,99472.0,99471.0,0.00054985]
[1736956217631,0.69695339,99472.0,99471.0,0.00054985]
[1736956218017,0.69395339,99472.0,99471.0,0.00054985]
[1736956218211,0.69295339,99472.0,99471.0,0.00054985]
[1736956218414,0.59695339,99472.0,99471.0,0.00054985]
[1736956218615,0.59395339,99472.0,99471.0,0.00054985]
[1736956219158,0.69595339,99472.0,99471.0,0.00054985]
[1736956219368,0.59695339,99472.0,99471.0,0.00054985]
[1736956219581,0.36502647,99472.0,99471.0,0.00054985]
[1736956219782,0.46925339,99472.0,99471.0,0.00054985]
[1736956219985,0.75958628,99472.0,99471.0,0.00054985]
[1736956220623,0.66925339,99472.0,99471.0,0.00054985]
[1736956220821,0.46625339,99472.0,99471.0,0.00054985]
[1736956221056,0.01096547,99472.0,99471.0,0.00054985]
[1736956221232,0.004,99472.0,99471.0,0.00054985]
[1736956221572,0.10616228,99472.0,99471.0,0.00054985]
[1736956221807,0.10816228,99472.0,99471.0,0.00054985]
[1736956222011,0.20816228,99472.0,99471.0,0.00054985]
[1736956222208,0.20616228,99472.0,99471.0,0.00054985]
[1736956222418,0.10616228,99472.0,99471.0,0.00354985]
[1736956222637,0.10516228,99472.0,99471.0,0.00354985]
[1736956223526,0.10516228,99472.0,99457.0,1.5]
[1736956223527,0.1,99459.0,99457.0,1.5]
[1736956223734,0.1,99459.0,99441.0,0.00179256]
[1736956223735,0.15,99452.0,99441.0,0.00179256]
[1736956223947,0.351122,99442.0,99441.0,0.00179256]
[1736956224141,0.351122,99442.0,99441.0,0.00194231]
[1736956224786,0.45534892,99442.0,99441.0,0.00194231]
[1736956225198,0.01026508,99442.0,99441.0,0.00394231]
[1736956225392,0.00789536,99454.0,99441.0,0.00394231]
[1736956225592,0.2011,99453.0,99441.0,0.00394231]
[1736956225804,0.201104,99451.0,99441.0,0.00394231]
[1736956226011,0.15,99452.0,99441.0,0.00394231]
[1736956226012,0.15,99452.0,99450.0,1.5]
[1736956226216,0.1,99473.0,99441.0,0.00394231]
[1736956226217,0.0805,99472.0,99441.0,0.00394231]
[1736956226424,0.0805,99485.0,99442.0,0.31669148]
[1736956226647,0.0008557,99480.0,99444.0,0.023]
[1736956226851,0.20106,99473.0,99464.0,1.5]
[1736956227083,0.20198236,99479.0,99452.0,0.201101]
[1736956227249,0.201061,99473.0,99454.0,0.201097]
[1736956227493,0.00093536,99478.0,99454.0,0.201097]
[1736956227703,0.003,99453.0,99441.0,0.00194231]
[1736956227942,0.201102,99452.0,99441.0,0.00194231]
[1736956228085,0.201106,99450.0,99441.0,0.00194231]
[1736956228271,0.00093536,99449.0,99441.0,0.00194231]
[1736956228914,0.009,99453.0,99441.0,0.00294231]
[1736956229116,0.15,99455.0,99441.0,0.00194231]
[1736956229117,0.201106,99450.0,99441.0,0.00194231]
[1736956229300,0.201108,99449.0,99441.0,0.00394231]
[1736956229726,0.15,99455.0,99441.0,0.00194231]
[1736956229924,0.2011,99453.0,99441.0,0.00194231]
[1736956230133,0.201112,99447.0,99441.0,0.00294231]
[1736956230492,0.201112,99447.0,99441.0,0.00694231]
[1736956231232,0.00093536,99452.0,99441.0,0.00694231]
[1736956231233,0.201114,99446.0,99441.0,0.00294231]
[1736956231591,0.10422692,99446.0,99441.0,0.00694231]
[1736956231749,0.351122,99442.0,99441.0,0.00794231]
[1736956231960,1.11284892,99442.0,99441.0,0.00181716]
[1736956232158,1.11284892,99442.0,99431.0,0.0004]
[1736956232159,0.351142,99432.0,99431.0,0.0004]
[1736956232386,0.46232892,99432.0,99431.0,0.0004]
[1736956233350,0.46232892,99432.0,99431.0,0.0024]
[1736956233550,0.201142,99432.0,99431.0,0.0024]
[1736956233775,0.45630428,99432.0,99431.0,0.0024]
[1736956233978,0.54122635,99432.0,99431.0,0.0024]
[1736956234178,0.45536892,99432.0,99431.0,0.0024]
[1736956234425,0.4652697,99432.0,99431.0,0.0054]
[1736956235266,0.36104278,99432.0,99431.0,0.0054]
[1736956235487,0.201142,99432.0,99431.0,0.0054]
[1736956235905,0.201142,99432.0,99431.0,1.5054]
[1736956236212,0.45536892,99432.0,99431.0,0.0088489]
[1736956236637,0.45536892,99432.0,99431.0,0.0034]
[1736956236829,0.65959584,99432.0,99431.0,0.0014]
[1736956237044,0.53216892,99432.0,99431.0,0.0014]
[1736956237367,0.53216892,99432.0,99431.0,0.0004]
[1736956237368,0.202142,99432.0,99431.0,0.0004]
[1736956237570,0.402273,99435.0,99431.0,0.0004]
[1736956237696,0.007,99432.0,99431.0,0.0014]
[1736956238058,0.007,99432.0,99431.0,0.0004]
[1736956238268,0.007,99432.0,99431.0,0.0014]
[1736956238486,0.014,99432.0,99431.0,0.0014]
[1736956238655,0.001,99432.0,99431.0,0.0004]
[1736956238859,0.001,99432.0,99431.0,0.0021976]
[1736956239063,0.00696,99436.0,99431.0,0.0021976]
[1736956239237,0.002,99432.0,99431.0,0.0021976]
[1736956239437,0.002,99432.0,99431.0,0.00638703]
[1736956239777,0.00696,99436.0,99431.0,0.00638703]
[1736956240028,0.32994955,99442.0,99431.0,0.00738703]
[1736956240236,0.32994955,99442.0,99437.0,0.201131]
[1736956240686,0.00014955,99442.0,99438.0,0.00343168]
[1736956241065,0.00014955,99442.0,99431.0,0.0021976]
[1736956241267,0.00014955,99442.0,99439.0,0.00343135]
[1736956241481,0.00014955,99442.0,99434.0,0.201138]
[1736956241653,0.00014955,99442.0,99435.0,0.00100563]
[1736956241862,0.00014955,99442.0,99438.0,0.204128]
[1736956242087,0.00014955,99442.0,99438.0,1.503]
[1736956242332,0.00014955,99442.0,99439.0,0.00343135]
[1736956242654,0.00014955,99442.0,99440.0,0.201126]
[1736956242788,0.00014955,99442.0,99439.0,0.00443688]
[1736956242789,0.00014955,99442.0,99439.0,0.00343135]
[1736956242992,0.00014955,99442.0,99438.0,0.003]
[1736956243333,0.00014955,99442.0,99427.0,0.00100563]
[1736956243485,0.00014955,99442.0,99439.0,0.005]
[1736956243865,0.00014955,99442.0,99430.0,0.201145]
[1736956243866,0.00014955,99442.0,99440.0,0.0042004]
[1736956244718,0.00014955,99442.0,99441.0,0.00338848]
[1736956245103,0.00014955,99442.0,99438.0,0.002]
[1736956245316,0.00014955,99442.0,99439.0,0.002]
[1736956245556,0.00014955,99442.0,99441.0,0.00338848]
[1736956245688,0.00014955,99442.0,99439.0,0.002]
[1736956245890,0.00014955,99442.0,99440.0,0.00338881]
[1736956246500,0.00014955,99442.0,99441.0,0.201124]
[1736956246701,0.00014955,99442.0,99440.0,0.00338881]
[1736956246877,0.00014955,99442.0,99441.0,0.00538848]
[1736956247025,0.00014955,99442.0,99441.0,1.50338848]
[1736956247874,0.00014955,99442.0,99441.0,0.00338848]
[1736956248046,0.00014955,99442.0,99441.0,0.00538848]
[1736956248358,0.00108491,99442.0,99441.0,0.002]
[1736956248770,0.07788491,99442.0,99441.0,0.002]
[1736956249115,0.0879281,99442.0,99441.0,0.003]
[1736956249434,0.0879281,99442.0,99441.0,0.0072023]
[1736956249790,0.00014955,99442.0,99441.0,0.0062023]
[1736956250047,0.00114955,99442.0,99441.0,0.0062023]
[1736956250249,0.00114955,99442.0,99441.0,0.13142922]
[1736956250454,0.00414955,99442.0,99441.0,1.14116319]
[1736956250655,0.00414955,99442.0,99441.0,1.26724276]
[1736956250834,0.00414955,99442.0,99441.0,1.66626746]
[1736956251145,0.00414955,99442.0,99441.0,1.56219546]
[1736956251294,0.00014955,99442.0,99441.0,1.56199306]
[1736956251499,0.00114955,99442.0,99441.0,1.57099306]
[1736956251737,0.00214955,99442.0,99441.0,1.57099306]
[1736956251939,0.00214955,99442.0,99441.0,1.56199306]
[1736956252156,0.00214955,99442.0,99441.0,3.07208265]
[1736956252368,0.00114955,99442.0,99441.0,3.07208265]
[1736956252566,0.00114955,99442.0,99441.0,3.07708265]
[1736956252976,0.00114955,99442.0,99441.0,3.06699306]
[1736956253170,0.00114955,99442.0,99441.0,3.0629347]
[1736956253349,0.00214955,99442.0,99441.0,3.0100097]
[1736956253553,0.00214955,99442.0,99441.0,2.9148877]
[1736956253762,0.00014955,99442.0,99441.0,2.9058877]
[1736956253964,0.00114955,99442.0,99441.0,2.9148877]
[1736956254628,0.00114955,99442.0,99441.0,2.8036947]
[1736956254831,0.00114955,99442.0,99441.0,3.1818787]
[1736956255947,0.00114955,99442.0,99441.0,1.52113954]
[1736956256147,0.00114955,99442.0,99441.0,1.62536646]
[1736956256347,0.00114955,99442.0,99441.0,2.7590377]
[1736956256548,0.00114955,99442.0,99441.0,2.65634426]
[1736956256821,0.00114955,99442.0,99441.0,1.5237891]
[1736956258545,0.00114955,99442.0,99441.0,1.62801602]
[1736956261135,0.00114955,99442.0,99441.0,0.0237891]
[1736956261292,0.39602315,99442.0,99441.0,0.0237891]
[1736956261494,0.38572063,99442.0,99441.0,0.0167976]
[1736956261700,0.67509647,99442.0,99441.0,0.0107976]
[1736956262102,0.77509647,99442.0,99441.0,0.0117976]
[1736956262321,0.88517811,99442.0,99441.0,1e-06]
[1736956262515,0.25,99432.0,99419.0,1.5]
[1736956262716,0.55536892,99432.0,99419.0,1.5]
[1736956263413,0.55536892,99432.0,99418.0,0.00179256]
[1736956263608,0.55936892,99432.0,99418.0,0.00179256]
[1736956263811,0.4702428,99432.0,99418.0,0.00179256]
[1736956264246,0.4772028,99432.0,99418.0,0.00179256]
[1736956264450,0.4732028,99432.0,99418.0,0.00179256]
[1736956264592,0.5732028,99432.0,99418.0,0.00179256]
[1736956264830,0.5792028,99432.0,99431.0,0.0031976]
[1736956265213,0.5782028,99432.0,99431.0,0.0031976]
[1736956265429,0.5802028,99432.0,99431.0,0.0031976]
[1736956267049,0.4802028,99432.0,99431.0,0.0031976]
[1736956268013,0.5802028,99432.0,99431.0,0.0031976]
[1736956269327,0.57523361,99432.0,99431.0,0.0031976]
[1736956271016,0.201168,99419.0,99418.0,0.00179256]
[1736956271225,0.30633028,99419.0,99418.0,0.00179256]
[1736956271421,0.30539492,99419.0,99418.0,0.00179256]
[1736956273436,0.55539492,99419.0,99418.0,0.00179256]
[1736956273654,0.64920072,99419.0,99418.0,0.00179256]
[1736956274087,0.2160738,99419.0,99418.0,0.00179256]
[1736956274302,0.002,99419.0,99418.0,0.00179256]
[1736956274447,0.002,99419.0,99418.0,0.00279828]
[1736956274650,0.002,99419.0,99418.0,1.51143154]
[1736956274890,0.002,99419.0,99418.0,1.50179256]
[1736956275057,0.203168,99419.0,99418.0,1.51070947]
[1736956275264,0.31435492,99419.0,99418.0,0.01070947]
[1736956275639,0.57159416,99419.0,99418.0,0.00179256]
[1736956275859,0.57706277,99419.0,99418.0,0.00179256]
[1736956276079,0.67706277,99419.0,99418.0,0.00179256]
[1736956276258,0.67506277,99419.0,99418.0,0.00179256]
[1736956276461,0.67706277,99419.0,99418.0,0.00179256]
[1736956276658,0.47010277,99419.0,99418.0,0.00179256]
[1736956276859,0.47506277,99419.0,99418.0,0.00179256]
[1736956277080,0.47706277,99419.0,99418.0,0.00179256]
[1736956277805,0.48506277,99419.0,99418.0,0.00179256]
[1736956278305,0.58506277,99419.0,99418.0,0.00179256]
[1736956278546,0.68706277,99419.0,99418.0,0.00179256]
[1736956278757,0.72518259,99419.0,99418.0,0.00179256]
[1736956279692,0.68706277,99419.0,99418.0,0.00179256]
[1736956280572,1.09576277,99419.0,99418.0,1e-08]
[1736956280767,0.25,99406.0,99400.0,0.00179571]
[1736956280974,0.351205,99401.0,99400.0,0.00179571]
[1736956281129,0.45543192,99401.0,99400.0,0.00179571]
[1736956281653,0.48140608,99401.0,99400.0,0.00179571]
[1736956282021,0.48140608,99401.0,99400.0,0.00229502]
[1736956282654,0.58140608,99401.0,99400.0,0.00229502]
[1736956282844,0.55543192,99401.0,99400.0,0.00229502]
[1736956283248,0.55643192,99401.0,99400.0,0.00229502]
[1736956283664,0.46825815,99401.0,99400.0,0.00229502]
[1736956284072,0.46725815,99401.0,99400.0,0.00229502]
[1736956284275,0.47625815,99401.0,99400.0,0.00229502]
[1736956284683,0.57025815,99401.0,99400.0,0.00229502]
[1736956284913,0.47525815,99401.0,99400.0,0.00229502]
[1736956285084,0.47225815,99401.0,99400.0,0.00229502]
[1736956285526,0.72116624,99401.0,99400.0,0.00229502]
[1736956285831,1.00405815,99401.0,99400.0,0.00229502]
[1736956286086,1.08095815,99401.0,99400.0,0.00229502]
[1736956286264,1.07795815,99401.0,99400.0,0.00229502]
[1736956286481,1.08495815,99401.0,99400.0,0.00229502]
[1736956286666,0.551223,99392.0,99391.0,0.0004]
[1736956286889,0.65544992,99392.0,99391.0,0.0004]
[1736956287103,0.67844992,99392.0,99391.0,0.0004]
[1736956287515,0.65544992,99392.0,99391.0,0.0004]
[1736956287674,0.67663056,99392.0,99391.0,0.0004]
[1736956288054,0.65544992,99392.0,99391.0,0.0004]
[1736956288254,0.66444992,99392.0,99391.0,0.0004]
[1736956288593,0.66444992,99392.0,99370.0,0.000855]
[1736956288594,0.1,99372.0,99371.0,0.00073116]
[1736956288759,0.1,99372.0,99367.0,0.00037789]
[1736956288760,0.35,99368.0,99367.0,0.00037789]
[1736956288963,0.47722692,99368.0,99367.0,0.0005279]
[1736956289270,0.58145384,99368.0,99367.0,0.0005279]
[1736956289473,0.59352362,99368.0,99367.0,0.0005279]
[1736956289682,0.4892967,99368.0,99367.0,0.0005279]
[1736956289879,0.4859967,99368.0,99367.0,0.0005279]
[1736956290092,0.4629967,99368.0,99367.0,0.0005279]
[1736956290353,0.2822567,99368.0,99367.0,0.0005279]
[1736956290846,0.2662967,99368.0,99367.0,0.0005279]
[1736956291048,0.2822567,99368.0,99367.0,0.0005279]
[1736956291264,0.2852567,99368.0,99367.0,0.0005279]
[1736956291751,0.2822567,99368.0,99367.0,0.0005279]
[1736956291956,0.2842567,99368.0,99367.0,0.0005279]